bitfinex-derivatives/quotes_SOLF0:USTF0_20251119
["timestamp","ask_amount","ask_price","bid_price","bid_amount"]
[1763570075691,3.32,134.06,134.04,6.7192]
[1763570075897,3.32,134.05,134.02,104.5372]
[1763570076194,3.32,134.05,134.01,104.5448]
[1763570076396,3.32,134.05,133.99,104.5592]
[1763570076597,0.39,134.02,134.01,0.04976985]
[1763570076797,0.39,134.02,134.0,104.60340593]
[1763570077303,0.39,134.02,134.01,6.7209]
[1763570077894,0.04804017,134.03,134.01,6.7209]
[1763570078900,0.04804017,134.03,134.0,0.04810593]
[1763570079397,0.04804017,134.03,134.01,6.7208]
[1763570082004,0.04804017,134.03,134.0,0.04810593]
[1763570083598,0.04804017,134.03,134.0,6.76940593]
[1763570084005,0.04804017,134.03,134.0,0.04810593]
[1763570086501,0.04804017,134.03,134.0,6.76940593]
[1763570087905,0.04804017,134.03,134.01,9.8908]
[1763570088107,0.04804017,134.03,134.0,3.21810593]
[1763570088306,0.04804017,134.03,134.01,6.7208]
[1763570090918,0.04804017,134.03,134.01,9.8908]
[1763570091117,0.04804017,134.03,134.02,3.17]
[1763570091316,0.04804017,134.03,134.0,3.21810593]
[1763570092821,0.04804017,134.03,134.01,9.8907]
[1763570093028,0.04804017,134.03,134.02,3.17]
[1763570094124,0.04804017,134.03,134.01,6.7207]
[1763570098530,0.04804017,134.03,134.0,0.04810593]
[1763570099531,5.62409619,134.02,134.0,3.21810593]
[1763570099735,0.04804017,134.03,134.01,6.7209]
[1763570099937,0.04804017,134.03,134.0,3.21810593]
[1763570100330,0.04804017,134.03,134.0,9.93940593]
[1763570100638,0.04804017,134.03,134.0,3.21810593]
[1763570100839,0.04804017,134.03,134.01,6.7208]
[1763570101130,0.04804017,134.03,134.0,3.21810593]
[1763570101534,0.04804017,134.03,134.0,0.04810593]
[1763570101936,5.62365078,134.02,134.0,0.04810593]
[1763570102238,0.04804017,134.03,134.0,0.04810593]
[1763570102435,5.62221712,134.02,134.0,0.04810593]
[1763570102636,5.62221712,134.01,134.0,0.04810593]
[1763570103136,5.62221712,134.01,133.93,19.05]
[1763570103325,104.5659,133.99,133.9,3.17]
[1763570103523,5.61467076,133.98,133.9,3.17]
[1763570103734,111.37360687,134.01,133.91,3.17]
[1763570103940,12.33652654,134.0,133.95,6.7236]
[1763570104134,0.05123529,133.99,133.96,0.05707018]
[1763570104336,5.61443083,133.98,133.96,0.05707018]
[1763570104547,6.7227,133.98,133.96,0.05707018]
[1763570104834,5.60963984,133.97,133.96,0.05707018]
[1763570105033,6.724,133.95,133.9,3.17]
[1763570105234,104.5957,133.95,133.85,3.17]
[1763570105440,104.605,133.94,133.85,19.05]
[1763570105635,104.5911,133.96,133.86,3.17]
[1763570105940,104.6036,133.94,133.86,3.17]
[1763570106247,0.05597076,133.91,133.89,0.0477588]
[1763570109438,0.05597076,133.91,133.89,3.0877588]
[1763570109628,0.05597076,133.91,133.89,0.0477588]
[1763570110140,0.05597076,133.91,133.89,3.0877588]
[1763570110347,0.05597076,133.91,133.89,9.8144588]
[1763570110541,6.82340687,134.01,133.91,107.6628]
[1763570110739,5.63336092,134.0,133.92,3.04]
[1763570111037,110.19611858,133.99,133.9,3.04]
[1763570111227,104.561,134.0,133.82,23.91767937]
[1763570111228,110.21091858,133.98,133.82,23.91767937]
[1763570111429,104.6056,133.94,133.84,3.04]
[1763570111748,0.0525365,133.9,133.88,0.04957503]
[1763570112640,6.7791365,133.9,133.88,0.04957503]
[1763570113229,0.0525365,133.9,133.88,0.04957503]
[1763570114349,104.6588,133.87,133.73,3.04]
[1763570114536,104.6505,133.88,133.75,3.04]
[1763570114738,104.6505,133.88,133.76,3.04]
[1763570114739,5.61592981,133.87,133.76,3.04]
[1763570114935,5.61592981,133.86,133.77,3.04]
[1763570115138,6.82340687,133.93,133.8,3.04]
[1763570115348,0.05389555,133.88,133.85,3.09410727]
[1763570116549,6.82340687,133.96,133.89,3.04]
[1763570116748,5.6152182,133.95,133.89,3.04]
[1763570116934,6.82340687,133.98,133.89,3.04]
[1763570116935,111.39700687,133.98,133.89,3.04]
[1763570117136,12.43887648,133.97,133.89,3.04]
[1763570117449,5.61546961,133.96,133.89,3.04]
[1763570117646,0.05483478,133.94,133.92,0.05541667]
[1763570117837,5.67030439,133.94,133.92,0.05541667]
[1763570118146,0.05483478,133.94,133.92,0.05541667]
[1763570118351,0.05483478,133.94,133.92,3.09541667]
[1763570118646,0.05483478,133.94,133.92,0.05541667]
[1763570119446,0.05483478,133.94,133.92,3.09541667]
[1763570119742,118.30452224,134.02,133.92,3.09541667]
[1763570119743,6.89340687,134.01,133.93,3.04]
[1763570119945,5.60293076,134.0,133.95,3.04]
[1763570120148,0.07,134.01,133.92,3.04]
[1763570120340,5.67304361,134.0,133.92,3.04]
[1763570120541,5.60304361,133.99,133.92,3.04]
[1763570120839,0.051395,133.97,133.94,3.09245003]
[1763570121341,0.07,133.94,133.86,3.04]
[1763570121541,5.60743381,133.93,133.86,3.04]
[1763570121943,0.07,133.94,133.86,3.04]
[1763570122250,6.7242,133.95,133.86,3.04]
[1763570122251,2.26662412,133.95,133.93,3.04]
[1763570122546,0.05696926,133.95,133.93,3.09491334]
[1763570122959,6.82340687,134.02,133.96,6.7234]
[1763570123254,3.25,134.02,133.95,3.04]
[1763570123651,3.25,134.02,133.96,9.7631]
[1763570123847,10.07340687,134.05,133.96,3.04]
[1763570124047,0.05445618,134.02,133.99,0.04781241]
[1763570124355,3.30445618,134.02,133.99,0.04781241]
[1763570124755,3.25,134.0,133.93,3.04]
[1763570124946,3.16,134.01,133.93,3.04]
[1763570125142,3.16,133.99,133.9,3.05]
[1763570125340,3.16,133.99,133.91,3.05]
[1763570125846,3.16,133.99,133.94,3.10161945]
[1763570125847,0.05103385,133.96,133.94,3.10161945]
[1763570126353,13.54370687,134.03,133.95,107.6441]
[1763570126554,9.98340687,134.05,133.97,3.05]
[1763570126843,9.8791,134.05,133.98,6.7221]
[1763570127046,3.16,134.05,133.98,6.7221]
[1763570127246,3.16,134.04,133.97,3.05]
[1763570127455,0.05354359,134.02,133.99,0.05145632]
[1763570128159,3.21354359,134.02,133.99,0.05145632]
[1763570129047,0.05354359,134.02,133.99,3.10145632]
[1763570129245,0.05354359,134.02,133.99,0.05145632]
[1763570129662,0.05354359,134.02,133.99,3.10145632]
[1763570129841,0.05354359,134.02,134.0,3.05]
[1763570130046,3.16,134.09,134.0,4.55]
[1763570130255,3.16,134.09,134.02,3.05]
[1763570130451,3.16,134.09,134.03,6.7195]
[1763570130645,3.16,134.09,134.02,3.05]
[1763570131257,3.2119652,134.07,134.04,0.054512]
[1763570131856,9.9299652,134.07,134.04,0.054512]
[1763570132052,0.0519652,134.07,134.04,0.054512]
[1763570132556,0.0519652,134.07,134.04,3.104512]
[1763570132754,3.2119652,134.07,134.04,0.054512]
[1763570132952,0.0519652,134.07,134.04,0.054512]
[1763570133256,3.2119652,134.07,134.04,0.054512]
[1763570134152,3.16,134.06,134.04,0.054512]
[1763570134851,3.16,134.05,134.04,0.054512]
[1763570135058,8.75878559,134.05,133.98,3.05]
[1763570135247,5.59878559,134.04,133.98,3.05]
[1763570135449,5.59878559,134.03,133.98,3.05]
[1763570135651,3.16,134.03,133.98,3.05]
[1763570135848,9.08833938,134.02,133.95,3.05]
[1763570136048,3.21592227,134.0,133.97,0.0479776]
[1763570136254,3.16,133.98,133.97,0.0479776]
[1763570136451,0.05592227,134.0,133.97,0.0479776]
[1763570136752,3.16,133.98,133.97,0.0479776]
[1763570136945,9.08803081,133.98,133.97,0.0479776]
[1763570137346,9.08803081,133.98,133.91,3.05]
[1763570137551,5.92803081,133.97,133.91,3.05]
[1763570137753,3.16,133.98,133.91,3.05]
[1763570137951,5.93120929,133.97,133.91,3.05]
[1763570138151,5.93120929,133.96,133.91,3.05]
[1763570138354,0.04745497,133.95,133.92,3.12579397]
[1763570138655,0.04745497,133.95,133.92,0.05579397]
[1763570138862,5.9341745,133.94,133.92,0.05579397]
[1763570139162,0.04745497,133.95,133.92,3.12579397]
[1763570139355,0.04745497,133.95,133.92,0.05579397]
[1763570139663,0.04745497,133.95,133.92,3.12579397]
[1763570139956,0.04745497,133.95,133.93,3.07]
[1763570140356,0.04745497,133.95,133.94,3.07]
[1763570141359,3.32745497,133.95,133.92,0.05579397]
[1763570142154,3.28,133.93,133.83,3.07]
[1763570142349,9.12632587,133.92,133.83,3.07]
[1763570142550,5.84632587,133.91,133.83,3.07]
[1763570142766,5.84632587,133.9,133.83,3.07]
[1763570142948,5.84632587,133.9,133.8,194.3296]
[1763570142949,3.28,133.88,133.79,3.07]
[1763570143162,0.0524674,133.85,133.82,0.04967149]
[1763570143452,3.3324674,133.85,133.82,0.04967149]
[1763570143755,3.28,133.83,133.75,4.37056993]
[1763570143953,3.25,133.81,133.72,3.07]
[1763570144263,3.25,133.84,133.75,3.07]
[1763570144459,5.83340895,133.83,133.76,3.07]
[1763570144663,6.82340687,133.86,133.78,107.7952]
[1763570144862,0.05051199,133.83,133.81,0.04956153]
[1763570145962,0.05051199,133.83,133.81,3.11956153]
[1763570146356,0.05051199,133.83,133.82,3.07]
[1763570146970,10.10340687,133.94,133.86,107.7318]
[1763570147153,5.82083397,133.93,133.87,104.6538]
[1763570147356,6.82340687,133.96,133.89,3.07]
[1763570147559,5.82257866,133.95,133.91,3.07]
[1763570147754,6.82340687,133.98,133.91,3.07]
[1763570147956,0.05753295,133.96,133.93,0.05748448]
[1763570148268,0.05753295,133.96,133.93,3.12748448]
[1763570148456,0.05753295,133.96,133.95,3.07]
[1763570148760,5.82609984,134.0,133.96,3.07]
[1763570148962,6.82340687,134.05,133.97,107.6467]
[1763570149166,15.88757561,134.04,133.97,9.7925]
[1763570149364,5.78416874,134.03,133.97,9.7925]
[1763570149672,3.28,134.04,133.98,3.07]
[1763570149871,0.05690772,134.01,133.99,0.05741262]
[1763570150173,0.05690772,134.01,133.99,3.12741262]
[1763570150673,0.05690772,134.01,133.99,0.05741262]
[1763570151169,0.05690772,134.01,133.99,3.12741262]
[1763570151363,0.05690772,134.01,133.99,0.05741262]
[1763570151564,3.33690772,134.01,133.99,0.05741262]
[1763570151763,9.11646688,134.01,133.99,0.05741262]
[1763570151969,5.77883719,134.0,133.99,0.05741262]
[1763570152376,9.05883719,134.0,133.99,0.05741262]
[1763570153072,3.28,134.0,133.99,0.05741262]
[1763570153667,3.28,133.99,133.89,19.05]
[1763570153866,3.28,133.99,133.9,3.07]
[1763570154676,0.05275476,133.96,133.93,3.12095448]
[1763570154977,0.05394192,133.96,133.95,3.07]
[1763570156184,0.05394192,133.96,133.95,9.7936]
[1763570156477,0.05394192,133.96,133.95,3.07]
[1763570157978,3.28,134.03,133.97,6.7226]
[1763570158482,3.28,134.03,133.94,3.07]
[1763570158681,3.28,134.03,133.95,3.07]
[1763570158879,0.05288386,134.0,133.99,3.07]
[1763570159181,3.28,134.07,133.99,107.6309]
[1763570159372,9.9964,134.1,134.03,3.07]
[1763570159879,9.9964,134.1,134.04,6.7192]
[1763570159880,3.28,134.1,134.04,6.7192]
[1763570160077,0.0537096,134.08,134.06,3.12445646]
[1763570160273,3.28,134.18,134.07,104.4981]
[1763570160473,3.28,134.18,134.09,6.7167]
[1763570160775,3.28,134.17,134.1,3.07]
[1763570160983,3.28,134.17,134.1,107.5449]
[1763570161169,3.28,134.24,134.14,6.7143]
[1763570161574,3.32737914,134.2,134.18,0.05195637]
[1763570161776,3.28,134.17,134.08,3.07]
[1763570162277,3.28,134.11,134.04,3.07]
[1763570162477,3.28,134.11,134.02,3.07]
[1763570162478,9.0699019,134.1,134.02,3.07]
[1763570162672,5.7899019,134.09,134.02,3.07]
[1763570162988,0.05136191,134.07,134.05,0.05338691]
[1763570163178,0.05136191,134.07,134.05,3.12338691]
[1763570163383,0.05136191,134.07,134.05,107.63948691]
[1763570163585,0.05136191,134.07,134.06,3.07]
[1763570163782,0.05136191,134.07,134.05,0.05338691]
[1763570163986,0.05136191,134.07,134.05,3.12338691]
[1763570164486,6.82100155,134.13,134.06,3.07]
[1763570164671,5.78401247,134.12,134.06,107.5754]
[1763570164981,6.82100155,134.1,134.09,3.07]
[1763570165184,12.60501402,134.1,134.06,3.07]
[1763570165381,5.78401247,134.09,134.08,3.07]
[1763570165688,12.65369662,134.09,134.07,0.04890008]
[1763570165895,5.78401247,134.08,134.07,0.04890008]
[1763570166180,6.80974134,134.12,134.07,104.54990008]
[1763570166486,3.28,134.17,134.11,104.4686]
[1763570166487,9.09466873,134.17,134.11,104.4686]
[1763570166684,9.09466873,134.19,134.13,6.7146]
[1763570166876,9.09466873,134.19,134.08,10.47854153]
[1763570166877,12.37466873,134.17,134.05,104.5122]
[1763570167075,9.09466873,134.15,134.1,0.04810276]
[1763570167282,3.33396327,134.14,134.1,0.04810276]
[1763570167909,12.41466873,134.13,134.1,0.04810276]
[1763570168076,12.41466873,134.12,134.1,0.04810276]
[1763570168279,3.32,134.11,134.1,0.04810276]
[1763570168478,3.32,134.12,134.1,0.04810276]
[1763570168679,3.32,134.11,134.03,15.98]
[1763570168878,3.32,134.11,134.03,120.5097]
[1763570169177,6.7142,134.15,134.05,104.517]
[1763570169178,9.09466873,134.13,134.05,104.517]
[1763570169377,12.41466873,134.12,134.03,120.5095]
[1763570169680,0.05538345,134.09,134.06,0.04955487]
[1763570169980,3.37538345,134.09,134.06,0.04955487]
[1763570170182,12.47005218,134.09,134.06,0.04955487]
[1763570170381,3.32,134.08,134.06,0.04955487]
[1763570170887,0.05538345,134.09,134.06,104.55585487]
[1763570171087,0.05538345,134.09,134.06,120.53585487]
[1763570171291,0.05538345,134.09,134.07,6.7179]
[1763570171993,0.05538345,134.09,134.06,104.55555487]
[1763570172488,0.05538345,134.09,134.07,6.7176]
[1763570174384,9.09466873,134.16,134.11,104.4681]
[1763570174585,12.41466873,134.18,134.11,104.4681]
[1763570174787,12.41466873,134.18,134.1,104.4751]
[1763570174980,20.3536031,134.2,134.07,104.5008]
[1763570174981,12.41466873,134.17,134.07,104.5008]
[1763570175292,0.04797106,134.13,134.11,0.04741228]
[1763570175583,0.04797106,134.13,134.12,6.7154]
[1763570175787,3.36797106,134.13,134.11,0.04741228]
[1763570176294,3.32,134.12,134.06,15.98]
[1763570176793,0.04797106,134.13,134.06,15.98]
[1763570176981,0.04797106,134.13,134.08,104.4915]
[1763570177291,0.04797106,134.13,134.11,6.7157]
[1763570178084,6.14507476,134.12,134.11,6.7157]
[1763570178286,9.09466873,134.18,134.11,104.4654]
[1763570178601,6.14259436,134.17,134.13,104.4538]
[1763570178884,9.09466873,134.21,134.16,6.713]
[1763570179094,6.1425283,134.2,134.15,104.4384]
[1763570179284,6.19577518,134.19,134.16,0.0528836]
[1763570179487,6.1425283,134.18,134.16,0.0528836]
[1763570179685,9.4625283,134.17,134.16,0.0528836]
[1763570179890,6.1425283,134.17,134.16,0.0528836]
[1763570180896,0.05324688,134.19,134.16,104.4794836]
[1763570181099,0.05324688,134.19,134.16,0.0528836]
[1763570182595,0.05324688,134.19,134.16,104.4786836]
[1763570182796,3.37324688,134.19,134.16,0.0528836]
[1763570183800,0.05324688,134.19,134.16,0.0528836]
[1763570184698,3.07324688,134.19,134.16,0.0528836]
[1763570184996,3.02,134.18,134.16,0.0528836]
[1763570186796,0.05324688,134.19,134.16,0.0528836]
[1763570188199,3.02,134.17,134.08,104.4889]
[1763570188401,9.05700147,134.16,134.08,104.4889]
[1763570188592,9.05700147,134.17,134.1,104.4767]
[1763570188799,9.05700147,134.17,134.11,104.4696]
[1763570188988,9.05700147,134.18,134.11,104.4696]
[1763570191293,13.6420031,134.21,134.15,104.4359]
[1763570191497,16.6620031,134.23,134.15,104.4359]
[1763570191701,13.6420031,134.22,134.15,104.4359]
[1763570191902,13.6420031,134.22,134.14,104.4458]
[1763570192101,3.02,134.23,134.13,120.4319]
[1763570192404,16.6620031,134.23,134.13,15.98]
[1763570192608,16.6620031,134.19,134.09,104.4857]
[1763570192806,16.6620031,134.18,134.12,6.7152]
[1763570193104,9.12526399,134.17,134.12,6.7152]
[1763570193298,6.10526399,134.16,134.12,6.7152]
[1763570193500,3.02,134.17,134.09,15.98]
[1763570193501,6.10526399,134.15,134.09,15.98]
[1763570193703,6.10526399,134.14,134.09,15.98]
[1763570193903,6.10526399,134.13,134.09,15.98]
[1763570194090,6.399e-05,134.12,134.11,6.7158]
[1763570194495,3.02,134.2,134.11,104.4701]
[1763570194703,16.6620031,134.23,134.15,104.4349]
[1763570194904,3.02,134.23,134.15,120.4149]
[1763570195104,3.02,134.23,134.15,15.98]
[1763570195405,3.02,134.22,134.11,104.4701]
[1763570195613,3.02,134.18,134.1,6.7162]
[1763570195899,3.02,134.18,134.1,104.4775]
[1763570196705,3.02,134.18,134.09,120.461]
[1763570197003,3.02,134.18,134.11,104.4695]
[1763570197201,9.7306,134.22,134.14,6.7141]
[1763570197394,3.02,134.21,134.13,104.4508]
[1763570197798,3.02,134.21,134.15,6.7137]
[1763570198203,3.02,134.21,134.15,6.7136]
[1763570198402,3.02,134.21,134.11,120.4495]
[1763570198605,3.02,134.21,134.12,104.4625]
[1763570198803,3.02,134.21,134.12,6.7152]
[1763570198804,3.28,134.19,134.12,6.7152]
[1763570199003,3.28,134.17,134.08,104.4936]
[1763570199198,3.28,134.15,134.05,15.98]
[1763570199407,9.9952,134.13,134.04,104.5215]
[1763570199607,3.28,134.13,134.04,120.5015]
[1763570199908,3.28,134.13,134.07,6.7177]
[1763570200108,3.28,134.13,134.04,75.76642288]
[1763570200304,3.28,134.13,134.04,15.98]
[1763570200514,3.28,134.13,134.05,6.7188]
[1763570200705,3.28,134.13,134.04,15.98]
[1763570200905,3.28,134.13,134.04,37.90456467]
[1763570201210,3.28,134.13,134.05,104.5167]
[1763570201606,9.9951,134.13,134.06,6.7181]
[1763570201805,3.28,134.13,134.05,104.5166]
[1763570202206,3.28,134.13,134.04,22.23416261]
[1763570202409,3.28,134.12,134.03,15.98]
[1763570202608,3.28,134.11,134.03,15.98]
[1763570202810,3.28,134.11,134.05,6.7188]
[1763570203107,3.28,134.11,134.05,104.5165]
[1763570203611,5.5109909,134.14,134.05,104.5165]
[1763570203814,3.28,134.14,134.05,104.5165]
[1763570204314,3.28,134.17,134.09,104.4804]
[1763570204506,3.28,134.17,134.09,120.4604]
[1763570204907,3.28,134.17,134.09,15.98]
[1763570205208,3.28,134.2,134.1,104.4776]
[1763570205609,3.28,134.2,134.12,104.4617]
[1763570205810,3.28,134.2,134.12,104.4624]
[1763570206114,3.28,134.2,134.12,104.4615]
[1763570206312,3.28,134.24,134.16,104.4293]
[1763570206519,5.43129963,134.27,134.18,104.4146]
[1763570206813,3.28,134.27,134.21,6.7107]
[1763570208709,3.28,134.27,134.2,104.3967]
[1763570209014,3.28,134.27,134.21,104.3898]
[1763570209315,3.28,134.3,134.2,15.98]
[1763570209511,3.28,134.29,134.2,15.98]
[1763570209809,3.28,134.29,134.21,6.7106]
[1763570210514,9.9876,134.28,134.2,15.98]
[1763570210809,9.9876,134.28,134.16,6.87833039]
[1763570210810,3.28,134.26,134.16,6.87833039]
[1763570211015,9.9896,134.24,134.15,120.3955]
[1763570211309,9.9896,134.24,134.15,120.3959]
[1763570211912,3.28,134.22,134.12,111.33743039]
[1763570212102,3.28,134.22,134.13,15.96]
[1763570212616,6.7111,134.21,134.15,6.7137]
[1763570213213,6.7111,134.21,134.13,15.96]
[1763570213607,6.7116,134.2,134.13,22.6747]
[1763570213808,6.7116,134.2,134.13,6.7147]
[1763570214112,9.9916,134.2,134.13,6.7147]
[1763570214308,6.7107,134.22,134.13,104.454]
[1763570214910,6.7111,134.21,134.15,6.7137]
[1763570215110,3.28,134.23,134.15,6.7137]
[1763570215310,3.28,134.21,134.12,6.7152]
[1763570215611,3.28,134.23,134.13,104.451]
[1763570215809,3.28,134.23,134.12,104.455]
[1763570216000,3.28,134.19,134.11,15.96]
[1763570216202,3.28,134.18,134.11,15.96]
[1763570216616,3.28,134.15,134.11,15.96]
[1763570218115,6.7127,134.18,134.11,15.96]
[1763570218518,3.28,134.21,134.12,104.4617]
[1763570218914,9.9915,134.2,134.13,6.7145]
[1763570219115,3.28,134.2,134.11,15.96]
[1763570219310,107.6907,134.19,134.09,104.4801]
[1763570219518,9.9941,134.15,134.09,6.7168]
[1763570219715,3.28,134.15,134.06,120.466]
[1763570219911,6.7146,134.14,134.06,15.96]
[1763570220114,9.9946,134.14,134.06,15.96]
[1763570220309,6.7146,134.14,134.06,15.96]
[1763570220507,9.993,134.17,134.08,104.493]
[1763570220705,3.28,134.17,134.08,104.493]
[1763570220916,3.28,134.17,134.07,104.4986]
[1763570221123,3.28,134.17,134.07,104.5011]
[1763570221325,15.98,134.19,134.09,104.4841]
[1763570221622,3.28,134.2,134.13,6.7148]
[1763570221824,107.6834,134.2,134.09,104.4818]
[1763570222023,3.28,134.19,134.09,104.4818]
[1763570222219,3.28,134.19,134.11,104.4697]
[1763570222520,3.28,134.23,134.16,104.4291]
[1763570222824,3.28,134.23,134.19,6.7118]
[1763570223023,3.28,134.23,134.16,15.98]
[1763570223330,111.01880419,134.27,134.16,15.98]
[1763570223331,3.28,134.2,134.16,15.98]
[1763570223826,3.28,134.23,134.16,15.98]
[1763570224125,3.28,134.23,134.12,104.4594]
[1763570224324,3.28,134.23,134.13,104.4527]
[1763570224523,3.28,134.21,134.11,120.446]
[1763570224712,3.28,134.21,134.11,104.466]
[1763570225023,3.28,134.17,134.09,104.485]
[1763570225227,3.28,134.17,134.1,104.4771]
[1763570225419,111.06500419,134.21,134.1,104.4771]
[1763570225420,6.66980419,134.21,134.11,104.4702]
[1763570225625,9.9913,134.21,134.14,6.7143]
[1763570225815,3.28,134.21,134.12,15.98]
[1763570226015,3.28,134.2,134.12,15.98]
[1763570226516,3.28,134.19,134.09,104.4827]
[1763570226722,3.28,134.19,134.09,120.4627]
[1763570227024,9.9923,134.19,134.1,104.478]
[1763570227827,3.14,134.13,134.05,6.66980419]
[1763570228227,3.14,134.13,134.08,6.7173]
[1763570228424,107.5671,134.17,134.07,16.0]
[1763570228628,3.14,134.16,134.07,16.0]
[1763570228926,3.14,134.16,134.07,120.4979]
[1763570229233,3.14,134.16,134.05,104.5137]
[1763570229234,3.14,134.15,134.05,104.5137]
[1763570229625,9.854,134.15,134.06,104.5091]
[1763570229827,3.14,134.15,134.06,104.5087]
[1763570230221,9.854,134.15,134.1,6.7163]
[1763570230732,9.8525,134.18,134.1,104.4775]
[1763570231430,6.7117,134.2,134.11,104.4695]
[1763570231731,120.3517,134.24,134.15,104.4381]
[1763570231732,19.12,134.24,134.15,104.4381]
[1763570231928,19.12,134.24,134.14,104.444]
[1763570231929,3.14,134.24,134.16,104.4297]
[1763570232128,13.6420031,134.3,134.16,104.4297]
[1763570232129,6.90041071,134.29,134.2,104.3976]
[1763570232334,6.90041071,134.3,134.22,104.3828]
[1763570232537,3.14,134.31,134.23,104.3731]
[1763570233233,3.14,134.31,134.25,6.7087]
[1763570233423,3.14,134.31,134.22,111.05260419]
[1763570233632,3.14,134.29,134.19,104.403]
[1763570233832,9.8477,134.28,134.19,16.0]
[1763570234029,9.8477,134.28,134.16,111.09900419]
[1763570234030,3.14,134.27,134.16,111.09900419]
[1763570234224,3.14,134.27,134.17,120.4233]
[1763570234726,3.14,134.27,134.17,104.4233]
[1763570234926,3.14,134.27,134.18,16.0]
[1763570235226,3.14,134.27,134.19,104.4053]
[1763570235427,3.14,134.27,134.18,16.0]
[1763570235623,3.14,134.27,134.18,111.1266]
[1763570235828,3.14,134.27,134.18,6.7122]
[1763570236134,3.14,134.25,134.15,127.10790419]
[1763570236335,3.14,134.25,134.17,6.7126]
[1763570236521,107.5018,134.25,134.13,104.4544]
[1763570236832,3.14,134.23,134.13,104.4544]
[1763570237329,3.14,134.23,134.14,104.4442]
[1763570237532,3.14,134.2,134.09,104.4857]
[1763570237835,3.14,134.2,134.1,16.02]
[1763570238039,6.7127,134.18,134.1,22.736]
[1763570238329,3.14,134.17,134.1,6.716]
[1763570238536,3.14,134.17,134.07,16.02]
[1763570238537,3.14,134.15,134.07,16.02]
[1763570238929,3.14,134.15,134.06,16.02]
[1763570239131,3.14,134.14,134.06,16.02]
[1763570239327,107.5896,134.14,134.06,16.02]
[1763570239535,6.7135,134.16,134.06,104.5077]
[1763570239735,3.14,134.17,134.05,104.5151]
[1763570239936,3.14,134.17,134.07,111.16790419]
[1763570240235,3.14,134.17,134.08,104.4933]
[1763570240442,3.14,134.17,134.09,120.5049]
[1763570240630,3.14,134.17,134.09,16.02]
[1763570240934,107.5816,134.15,134.04,22.59128551]
[1763570241125,6.7152,134.13,134.06,6.7182]
[1763570241324,6.7152,134.13,134.05,16.02]
[1763570241935,3.14,134.14,134.07,6.7177]
[1763570242332,3.14,134.14,134.05,16.02]
[1763570242732,6.7151,134.13,134.05,6.7187]
[1763570242930,3.14,134.18,134.07,104.5]
[1763570243137,3.14,134.18,134.08,104.4909]
[1763570243832,6.7132,134.17,134.1,6.7161]
[1763570244235,3.14,134.17,134.07,6.66980419]
[1763570244433,3.14,134.17,134.06,104.5063]
[1763570244635,6.7136,134.16,134.08,6.7171]
[1763570245243,3.14,134.17,134.08,104.4923]
[1763570245438,3.14,134.17,134.06,104.5063]
[1763570245843,3.14,134.17,134.08,6.7172]
[1763570246242,107.569,134.17,134.08,6.7172]
[1763570246446,9.7847,134.14,134.05,120.5325]
[1763570246741,3.07,134.18,134.08,104.4936]
[1763570246933,9.7825,134.18,134.1,6.7162]
[1763570247133,3.07,134.18,134.11,104.4697]
[1763570247336,3.07,134.18,134.1,16.02]
[1763570247644,9.7826,134.18,134.11,6.7157]
[1763570247845,3.07,134.18,134.11,104.47]
[1763570248038,3.07,134.18,134.1,120.4948]
[1763570249041,25.75980419,134.21,134.12,104.4622]
[1763570249342,3.07,134.2,134.12,104.4622]